fUST/lending_fUST_20250827
["ID","MTS","AMOUNT","RATE_DAILY","PERIOD"]
[381541572,1756273841330,-501.63845286,0.00026621,2]
[381541573,1756273841342,-1000.0,0.00026621,2]
[381541574,1756273841351,-579.23238633,0.00026621,2]
[381541575,1756273841361,-1000.0,0.00026621,2]
[381541576,1756273841370,-350.0,0.00026621,2]
[381541577,1756273841380,-503.45865799,0.00026621,2]
[381541578,1756273841389,-500.0,0.00026621,2]
[381541579,1756273841398,-1000.0,0.00026621,2]
[381541580,1756273841409,-500.0,0.00026633,2]
[381541581,1756273841419,-183.9151083,0.00026633,2]
[381541582,1756273841428,-339.415213,0.00026676,2]
[381541583,1756273841437,-1905.93148453,0.00026706,2]
[381541584,1756273841446,-1756.0,0.00026716,2]
[381541585,1756273841455,-1000.0,0.00026716,2]
[381541586,1756273841464,-1473.20266328,0.00026716,2]
[381541587,1756273841473,-2000.0,0.00026716,2]
[381541588,1756273841483,-780.0,0.00026717,2]
[381541589,1756273841492,-1006.89480985,0.00026768,2]
[381541590,1756273841502,-219.04,0.00026786,7]
[381541591,1756273841511,-222.915027,0.00026806,6]
[381541592,1756273841520,-3208.43357252,0.00026806,6]
[381541593,1756273841529,-239.0,0.00026824,2]
[381541594,1756273841539,-420.0,0.00026824,2]
[381541595,1756273841548,-404.0,0.00026824,2]
[381541596,1756273841557,-420.0,0.00026824,2]
[381541597,1756273841566,-170.9158749,0.00026843,2]
[381541598,1756273841575,-151.0,0.00026883,2]
[381541599,1756273841584,-151.70519922,0.00026883,2]
[381541600,1756273841593,-511.48752778,0.00026883,2]
[381541601,1756273841603,-208.0,0.00026883,2]
[381541602,1756273841613,-500.0,0.00026883,2]
[381541603,1756273841623,-178.80502081,0.00026883,2]
[381541604,1756273841633,-151.0,0.00026883,2]
[381541605,1756273841643,-151.0,0.000269,11]
[381541606,1756273841652,-500.0,0.00026907,2]
[381541607,1756273841662,-500.0,0.00026973,2]
[381541608,1756273841672,-500.0,0.00026973,2]
[381541609,1756273841681,-500.0,0.00026973,2]
[381541610,1756273841691,-501.24493281,0.00026973,2]
[381541611,1756273841700,-5717.79445359,0.0002698,2]
[381541612,1756273841709,-100000.0,0.0002699,2]
[381541613,1756273841718,-243.950998,0.0002699,7]
[381541614,1756273841728,-243.950998,0.0002699,7]
[381541615,1756273841737,-243.950998,0.0002699,7]
[381541616,1756273841748,-243.950998,0.0002699,7]
[381541617,1756273841757,-151.0,0.0002699,7]
[381541618,1756273841766,-151.0,0.0002699,7]
[381541619,1756273841775,-153.119561,0.0002699,7]
[381541620,1756273841785,-151.0,0.0002699,7]
[381541621,1756273841794,-151.0,0.0002699,7]
[381541622,1756273841804,-190.124591,0.0002699,7]
[381541623,1756273841814,-151.0,0.0002699,7]
[381541624,1756273841823,-190.124591,0.0002699,7]
[381541625,1756273841833,-190.124591,0.0002699,7]
[381541626,1756273841842,-190.124591,0.0002699,7]
[381541627,1756273841852,-151.0,0.0002699,7]
[381541628,1756273841861,-151.0,0.0002699,7]
[381541629,1756273841870,-151.0,0.0002699,7]
[381541630,1756273841880,-151.0,0.0002699,7]
[381541631,1756273841889,-151.0,0.0002699,7]
[381541632,1756273841898,-151.0,0.0002699,7]
[381541633,1756273841907,-181.951389,0.0002699,7]
[381541634,1756273841917,-181.951389,0.0002699,7]
[381541635,1756273841926,-181.951389,0.0002699,7]
[381541636,1756273841935,-181.951389,0.0002699,7]
[381541637,1756273841945,-151.0,0.0002699,7]
[381541638,1756273841956,-151.0,0.0002699,7]
[381541639,1756273841966,-194.813698,0.0002699,7]
[381541640,1756273841975,-194.813698,0.0002699,7]
[381541641,1756273841986,-194.813698,0.0002699,7]
[381541642,1756273841996,-194.813698,0.0002699,7]
[381541643,1756273842007,-151.0,0.0002699,7]
[381541644,1756273842016,-151.0,0.0002699,7]
[381541645,1756273842026,-151.0,0.0002699,7]
[381541646,1756273842036,-151.0,0.0002699,7]
[381541647,1756273842045,-205.789613,0.0002699,7]
[381541648,1756273842055,-151.0,0.0002699,7]
[381541649,1756273842064,-151.0,0.0002699,7]
[381541650,1756273842073,-151.0,0.0002699,7]
[381541651,1756273842082,-151.0,0.0002699,7]
[381541652,1756273842092,-151.0,0.0002699,7]
[381541653,1756273842101,-151.0,0.0002699,7]
[381541654,1756273842110,-151.0,0.0002699,7]
[381541655,1756273842120,-189.998145,0.0002699,7]
[381541656,1756273842129,-151.0,0.0002699,7]
[381541657,1756273842138,-151.0,0.0002699,7]
[381541658,1756273842147,-151.0,0.0002699,7]
[381541659,1756273842156,-151.0,0.0002699,7]
[381541660,1756273842166,-151.0,0.0002699,7]
[381541661,1756273842175,-151.0,0.0002699,7]
[381541662,1756273842184,-151.785022,0.0002699,7]
[381541663,1756273842193,-300.677977,0.0002699,7]
[381541664,1756273842202,-300.677977,0.0002699,7]
[381541665,1756273842212,-300.677977,0.0002699,7]
[381541666,1756273842221,-300.677977,0.0002699,7]
[381541667,1756273842230,-151.0,0.0002699,7]
[381541668,1756273842239,-151.0,0.0002699,7]
[381541669,1756273842249,-151.0,0.0002699,7]
[381541670,1756273842259,-151.0,0.0002699,7]
[381541671,1756273842268,-151.0,0.0002699,7]
[381541672,1756273842277,-151.0,0.0002699,7]
[381541673,1756273842287,-157.69187,0.0002699,7]
[381541674,1756273842296,-157.69187,0.0002699,7]
[381541675,1756273842305,-157.69187,0.0002699,7]
[381541676,1756273842315,-151.0,0.0002699,7]
[381541677,1756273842324,-151.0,0.0002699,7]
[381541678,1756273842335,-157.69187,0.0002699,7]
[381541679,1756273842346,-235.914186,0.0002699,7]
[381541680,1756273842355,-151.0,0.0002699,7]
[381541681,1756273842365,-1002.41907,0.0002699,7]
[381541682,1756273842374,-235.914186,0.0002699,7]
[381541683,1756273842383,-1002.41907,0.0002699,7]
[381541684,1756273842392,-235.914186,0.0002699,7]
[381541685,1756273842402,-1002.41907,0.0002699,7]
[381541686,1756273842412,-151.0,0.0002699,7]
[381541687,1756273842421,-235.914186,0.0002699,7]
[381541688,1756273842432,-1002.41907,0.0002699,7]
[381541689,1756273842441,-151.0,0.0002699,7]
[381541690,1756273842451,-151.0,0.0002699,7]
[381541692,1756273842460,-151.0,0.0002699,7]
[381541693,1756273842469,-151.0,0.0002699,7]
[381541695,1756273842478,-1064.552854,0.0002699,7]
[381541696,1756273842488,-1064.552854,0.0002699,7]
[381541697,1756273842497,-1064.552854,0.0002699,7]
[381541698,1756273842507,-1064.552854,0.0002699,7]
[381541699,1756273842516,-151.0,0.0002699,7]
[381541700,1756273842526,-151.0,0.0002699,7]
[381541701,1756273842535,-151.0,0.0002699,7]
[381541702,1756273842544,-151.0,0.0002699,7]
[381541703,1756273842553,-151.0,0.0002699,7]
[381541704,1756273842563,-296.043892,0.0002699,7]
[381541705,1756273842572,-151.0,0.0002699,7]
[381541706,1756273842581,-780.0,0.00026991,2]
[381541707,1756273842590,-425.44119842,0.00027,3]
[381541709,1756273842600,-217.23771399,0.00027,3]
[381541710,1756273842610,-1000.0,0.00027068,2]
[381541711,1756273842619,-1680.0,0.00027088,2]
[381541712,1756273842629,-260.0,0.00027115,2]
[381541713,1756273842639,-151.0,0.00027157,2]
[381541714,1756273842648,-532.23854974,0.00027157,2]
[381541715,1756273842658,-1500.0,0.00027168,2]
[381541716,1756273842667,-1500.0,0.00027168,2]
[381541717,1756273842676,-1500.0,0.00027168,2]
[381541719,1756273842685,-198.0,0.00027181,2]
[381541720,1756273842695,-6607.39404664,0.00027187,2]
[381541721,1756273842704,-2500.0,0.00027264,2]
[381541722,1756273842713,-780.0,0.00027265,2]
[381541723,1756273842723,-151.0,0.00027347,7]
[381541724,1756273842732,-151.0,0.00027347,7]
[381541725,1756273842741,-151.0,0.00027347,7]
[381541726,1756273842751,-292.669496,0.00027347,7]
[381541727,1756273842760,-1000.0,0.00027397,2]
[381541728,1756273842769,-3019.08,0.00027397,60]
[381541729,1756273842779,-4072.09,0.000274,7]
[381541730,1756273842788,-5293.87,0.000274,7]
[381541731,1756273842798,-425.44119842,0.000274,7]
[381541732,1756273842807,-217.23771399,0.000274,7]
[381541733,1756273842817,-232.59867797,0.000274,7]
[381541734,1756273842826,-845.298898,0.000274,7]
[381541735,1756273842835,-3347.42,0.00027401,3]
[381541736,1756273842844,-1673.7,0.00027401,3]
[381541737,1756273842854,-836.86,0.00027401,3]
[381541738,1756273842864,-418.42,0.00027401,3]
[381541739,1756273842873,-519.9,0.00027401,3]
[381541740,1756273842882,-160.0,0.00027401,3]
[381541741,1756273842891,-232.59867797,0.00027401,3]
[381541742,1756273842900,-845.298898,0.00027401,3]
[381541743,1756273842909,-198.0,0.00027431,2]
[381541744,1756273842918,-1905.93148453,0.0002748,2]
[381541745,1756273842926,-1905.93148453,0.0002749,2]
[381541746,1756273842936,-62095.29,0.000275,7]
[381541747,1756273842945,-160.0,0.000275,7]
[381541748,1756273842953,-1000.0,0.00027521,2]
[381541749,1756273842963,-1000.0,0.00027521,5]
[381541750,1756273842972,-1000.0,0.00027521,5]
[381541751,1756273842981,-201.334348,0.00027522,2]
[381541752,1756273842990,-780.0,0.00027539,2]
[381541753,1756273843000,-360.0,0.00027663,2]
[381541754,1756273843010,-1500.0,0.00027716,5]
[381541755,1756273843019,-500.0,0.00027716,5]
[381541756,1756273843028,-153.0,0.00027783,2]
[381541757,1756273843037,-153.0,0.00027783,2]
[381541758,1756273843046,-153.0,0.00027783,2]
[381541759,1756273843055,-153.0,0.00027783,2]
[381541760,1756273843065,-153.0,0.00027783,2]
[381541761,1756273843075,-153.0,0.00027783,2]
[381541762,1756273843084,-153.0,0.00027783,2]
[381541763,1756273843093,-153.0,0.00027783,2]
[381541764,1756273843102,-6607.39404664,0.00027793,2]
[381541765,1756273843111,-780.0,0.00027813,2]
[381541768,1756273843121,-160.0,0.00028,3]
[381541769,1756273843130,-160.0,0.00028,3]
[381541770,1756273843139,-425.44119842,0.00028,10]
[381541771,1756273843148,-1000.03069539,0.00028068,2]
[381541772,1756273843158,-500.0,0.00028068,5]
[381541773,1756273843167,-150.0,0.00028073,5]
[381541774,1756273843175,-780.0,0.00028087,2]
[381541775,1756273843184,-152.043175,0.000281,7]
[381541776,1756273843193,-151.0,0.000281,7]
[381541777,1756273843202,-151.0,0.000281,7]
[381541778,1756273843211,-151.0,0.000281,7]
[381541779,1756273843221,-151.0,0.000281,7]
[381541780,1756273843230,-151.0,0.000281,7]
[381541781,1756273843238,-151.0,0.000281,7]
[381541782,1756273843248,-194.833902,0.000281,7]
[381541783,1756273843257,-151.0,0.000281,7]
[381541784,1756273843266,-222.915027,0.000281,20]
[381541785,1756273843275,-1905.93148453,0.00028201,2]
[381541786,1756273843284,-151.0,0.00028211,2]
[381541787,1756273843293,-156.587,0.00028211,2]
[381541788,1756273843302,-198.99657192,0.00028211,2]
[381541789,1756273843312,-500.0,0.00028211,2]
[381541790,1756273843321,-151.0,0.00028211,2]
[381541791,1756273843330,-569.00676989,0.00028211,2]
[381541792,1756273843341,-151.0,0.00028211,2]
[381541793,1756273843350,-300.0,0.00028211,2]
[381541794,1756273843359,-151.0,0.00028211,2]
[381541795,1756273843368,-151.0,0.00028211,2]
[381541796,1756273843378,-151.0,0.00028211,2]
[381541797,1756273843388,-151.0,0.00028211,2]
[381541798,1756273843397,-151.0,0.00028211,2]
[381541799,1756273843406,-2434.74389024,0.00028211,2]
[381541800,1756273843417,-300.0,0.00028211,2]
[381541801,1756273843426,-151.0,0.00028211,2]
[381541802,1756273843436,-201.05840099,0.00028211,2]
[381541803,1756273843445,-151.0,0.00028211,2]
[381541804,1756273843454,-151.0,0.00028211,2]
[381541805,1756273843463,-194.72792766,0.00028211,2]
[381541806,1756273843473,-151.0,0.00028211,2]
[381541807,1756273843482,-151.0,0.00028211,2]
[381541808,1756273843492,-151.0,0.00028211,2]
[381541809,1756273843503,-151.0,0.00028211,2]
[381541810,1756273843511,-250.0,0.00028211,2]
[381541811,1756273843521,-460.0,0.00028211,2]
[381541812,1756273843530,-2183.31810187,0.00028266,2]
[381541813,1756273843539,-1000.0,0.00028356,15]
[381541814,1756273843549,-780.0,0.00028361,2]
[381541815,1756273843558,-15072.24,0.000284,2]
[381541816,1756273843568,-6607.39404664,0.000284,2]
[381541817,1756273843577,-151.0,0.000285,17]
[381541818,1756273843586,-3208.43357252,0.00028533,10]
[381541819,1756273843595,-222.915027,0.00028546,20]
[381541820,1756273843604,-151.0,0.000286,7]
[381541821,1756273843614,-151.0,0.000286,7]
[381541822,1756273843624,-151.0,0.000286,7]
[381541824,1756273843633,-151.0,0.000286,7]
[381541826,1756273843643,-151.0,0.000286,7]
[381541827,1756273843653,-151.0,0.000286,7]
[381541828,1756273843663,-220.000708,0.000286,7]
[381541829,1756273843673,-222.497055,0.000286,7]
[381541831,1756273843684,-222.497055,0.000286,7]
[381541833,1756273843694,-222.497055,0.000286,7]
[381541834,1756273843703,-222.915027,0.000286,10]
[381541835,1756273843713,-222.497055,0.000286,7]
[381541836,1756273843722,-250.0,0.00028621,5]
[381541837,1756273843731,-780.0,0.00028635,2]
[381541838,1756273843741,-1905.93148453,0.00028707,2]
[381541839,1756273843753,-152.303452,0.00028713,7]
[381541840,1756273843762,-151.0,0.00028713,7]
[381541841,1756273843771,-33782.02608251,0.00028717,2]
[381541842,1756273843781,-157.69187,0.00028717,7]
[381541843,1756273843790,-157.69187,0.00028717,7]
[381541844,1756273843800,-157.69187,0.00028717,7]
[381541845,1756273843809,-151.0,0.00028717,7]
[381541846,1756273843818,-151.0,0.00028717,7]
[381541847,1756273843827,-157.69187,0.00028717,7]
[381541848,1756273843836,-235.914186,0.00028717,7]
[381541849,1756273843846,-1002.41907,0.00028717,7]
[381541850,1756273843855,-235.914186,0.00028717,7]
[381541851,1756273843864,-1002.41907,0.00028717,7]
[381541852,1756273843873,-235.914186,0.00028717,7]
[381541853,1756273843883,-1002.41907,0.00028717,7]
[381541854,1756273843892,-235.914186,0.00028717,7]
[381541855,1756273843902,-1002.41907,0.00028717,7]
[381541856,1756273843911,-151.0,0.00028717,7]
[381541857,1756273843921,-151.0,0.00028717,7]
[381541858,1756273843930,-151.0,0.00028717,7]
[381541859,1756273843941,-151.0,0.00028717,7]
[381541860,1756273843952,-1064.552854,0.00028717,7]
[381541861,1756273843961,-1064.552854,0.00028717,7]
[381541862,1756273843970,-1064.552854,0.00028717,7]
[381541863,1756273843979,-1064.552854,0.00028717,7]
[381541864,1756273843989,-151.0,0.00028724,7]
[381541865,1756273844001,-151.0,0.00028724,7]
[381541866,1756273844011,-152.230318,0.00028724,7]
[381541867,1756273844020,-151.0,0.00028724,7]
[381541868,1756273844029,-560.0,0.00028758,2]
[381541869,1756273844038,-222.915027,0.0002878,2]
[381541870,1756273844047,-4072.09,0.000288,7]
[381541871,1756273844057,-5293.87,0.000288,7]
[381541872,1756273844067,-151.0,0.000288,7]
[381541873,1756273844075,-151.0,0.000288,7]
[381541874,1756273844085,-151.0,0.000288,7]
[381541875,1756273844094,-151.0,0.000288,7]
[381541876,1756273844103,-151.0,0.000288,7]
[381541877,1756273844112,-151.0,0.000288,7]
[381541878,1756273844122,-163.71,0.00028812,15]
[381541879,1756273844131,-151.0,0.00028833,7]
[381541880,1756273844140,-151.0,0.00028833,7]
[381541881,1756273844150,-300.677977,0.00028833,7]
[381541882,1756273844159,-300.677977,0.00028833,7]
[381541883,1756273844168,-300.677977,0.00028833,7]
[381541884,1756273844178,-300.677977,0.00028833,7]
[381541885,1756273844187,-151.0,0.00028833,7]
[381541886,1756273844196,-151.0,0.00028833,7]
[381541887,1756273844205,-151.428142,0.00028833,7]
[381541888,1756273844215,-151.0,0.00028833,7]
[381541889,1756273844224,-161.65511474,0.00028833,15]
[381541890,1756273844233,-166.72,0.00028833,15]
[381541891,1756273844242,-371.42,0.00028833,15]
[381541892,1756273844252,-62095.29,0.000289,7]
[381541893,1756273844261,-194.813698,0.000289,7]
[381541894,1756273844270,-194.813698,0.000289,7]
[381541895,1756273844279,-194.813698,0.000289,7]
[381541896,1756273844289,-194.813698,0.000289,7]
[381541897,1756273844299,-151.0,0.000289,7]
[381541898,1756273844315,-151.0,0.000289,7]
[381541899,1756273844331,-151.0,0.000289,7]
[381541900,1756273844343,-151.0,0.000289,7]
[381541901,1756273844353,-151.0,0.000289,7]
[381541902,1756273844550,-151.0,0.000289,7]
[381541903,1756273844561,-151.0,0.000289,7]
[381541904,1756273844570,-151.0,0.000289,7]
[381541905,1756273844580,-151.0,0.000289,7]
[381541906,1756273844590,-151.0,0.000289,7]
[381541907,1756273844600,-151.0,0.000289,7]
[381541908,1756273844609,-151.0,0.000289,7]
[381541909,1756273844619,-151.0,0.000289,7]
[381541910,1756273844629,-151.0,0.000289,7]
[381541911,1756273844638,-780.0,0.00028909,2]
[381541912,1756273844647,-163.71,0.00028912,15]
[381541913,1756273844656,-166.72180674,0.00028933,15]
[381541914,1756273844666,-371.42,0.00028933,15]
[381541915,1756273844675,-222.915027,0.00028992,20]
[381541916,1756273844685,-151.0,0.00029,16]
[381541917,1756273844694,-151.0,0.00029,12]
[381541918,1756273844703,-217.23771399,0.00029,10]
[381541919,1756273844712,-845.298898,0.00029,10]
[381541920,1756273844722,-163.71,0.00029012,15]
[381541921,1756273844731,-371.42,0.00029033,15]
[381541922,1756273844741,-587.0,0.00029066,2]
[381541923,1756273844750,-163.73674592,0.00029112,15]
[381541924,1756273844759,-371.42,0.00029133,15]
[381541925,1756273844768,-350.0,0.00029168,5]
[381541926,1756273844778,-780.0,0.00029183,2]
[381541927,1756273844787,-371.42,0.00029233,15]
[381541928,1756273844797,-660.0,0.00029306,2]
[381541929,1756273844806,-851.88634379,0.00029315,15]
[381541930,1756273844816,-371.42,0.00029333,15]
[381541931,1756273844825,-2351.0,0.00029345,2]
[381541932,1756273844835,-151.0,0.000294,7]
[381541933,1756273844845,-151.0,0.000294,7]
[381541934,1756273844855,-151.0,0.000294,7]
[381541935,1756273844864,-151.0,0.000294,18]
[381541936,1756273844874,-151.0,0.000294,7]
[381541937,1756273844884,-151.0,0.000294,7]
[381541938,1756273844893,-371.42,0.00029433,15]
[381541939,1756273844905,-222.915027,0.00029438,20]
[381541940,1756273844914,-780.0,0.00029457,2]
[381541941,1756273844924,-371.42,0.00029533,15]
[381541942,1756273844934,-151.0,0.00029537,7]
[381541943,1756273844944,-151.0,0.00029537,7]
[381541944,1756273844954,-151.0,0.00029537,7]
[381541945,1756273844963,-151.0,0.00029537,7]
[381541946,1756273844973,-255.481843,0.00029537,7]
[381541947,1756273844983,-151.0,0.00029537,7]
[381541948,1756273844992,-151.0,0.00029537,7]
[381541949,1756273845002,-181.951389,0.00029537,7]
[381541950,1756273845012,-181.951389,0.00029537,7]
[381541951,1756273845022,-181.951389,0.00029537,7]
[381541952,1756273845031,-181.951389,0.00029537,7]
[381541953,1756273845041,-151.0,0.00029537,7]
[381541954,1756273845051,-151.0,0.00029537,7]
[381541955,1756273845061,-201.93286099,0.0002958,2]
[381541956,1756273845071,-1440.207087,0.00029589,120]
[381541957,1756273845080,-974.0,0.0002959,2]
[381541958,1756273845090,-638.0,0.0002959,2]
[381541959,1756273845100,-2157.0,0.0002959,2]
[381541960,1756273845110,-289.974,0.0002959,2]
[381541961,1756273845119,-151.0,0.000296,15]
[381541962,1756273845129,-371.42,0.00029633,15]
[381541963,1756273845139,-187.40190528,0.00029683,7]
[381541964,1756273845149,-836.6764121,0.00029697,2]
[381541965,1756273845158,-450.0,0.00029716,5]
[381541966,1756273845168,-780.0,0.00029731,2]
[381541967,1756273845177,-371.42,0.00029733,15]
[381541968,1756273845187,-151.0,0.000298,12]
[381541969,1756273845196,-371.42,0.00029833,15]
[381541970,1756273845205,-760.0,0.00029854,2]
[381541971,1756273845215,-222.915027,0.00029884,20]
[381541972,1756273845224,-150.648891,0.00029884,20]
[381541973,1756273845234,-199.0,0.000299,120]
[381541974,1756273845243,-151.0,0.000299,7]
[381541975,1756273845253,-151.0,0.000299,7]
[381541976,1756273845262,-151.0,0.000299,7]
[381541977,1756273845272,-243.950998,0.000299,7]
[381541978,1756273845281,-243.950998,0.000299,7]
[381541979,1756273845291,-243.950998,0.000299,7]
[381541980,1756273845300,-243.950998,0.000299,7]
[381541981,1756273845309,-151.0,0.000299,7]
[381541982,1756273845319,-151.0,0.000299,7]
[381541983,1756273845328,-151.0,0.000299,7]
[381541984,1756273845341,-190.124591,0.000299,7]
[381541985,1756273845350,-151.0,0.000299,7]
[381541986,1756273845359,-190.124591,0.000299,7]
[381541987,1756273845368,-190.124591,0.000299,7]
[381541988,1756273845377,-190.124591,0.000299,7]
[381541989,1756273845388,-371.42,0.00029933,15]
[381541990,1756273845406,-222.915027,0.00029977,6]
[381541991,1756273845420,-4072.09,0.0003,7]
[381541992,1756273845429,-5293.87,0.0003,7]
[381541993,1756273845440,-169.0,0.0003,14]
[381541994,1756273845449,-4000.0,0.0003,4]
[381541995,1756273845458,-185.0,0.0003,14]
[381541996,1756273845467,-780.0,0.00030005,2]
[381541997,1756273845476,-371.42,0.00030033,15]
[381541998,1756273845485,-222.915027,0.00030059,10]
[381541999,1756273845494,-15072.24,0.000301,2]
[381542000,1756273845504,-62095.29,0.000301,7]
[381542001,1756273845514,-371.42,0.00030133,15]
[381542002,1756273845523,-38251.8561977,0.00030137,2]
[381542003,1756273845533,-151.0,0.00030137,7]
[381542004,1756273845543,-151.0,0.00030137,7]
[381542005,1756273845553,-300.677977,0.00030137,7]
[381542006,1756273845562,-300.677977,0.00030137,7]
[381542007,1756273845572,-300.677977,0.00030137,7]
[381542008,1756273845582,-300.677977,0.00030137,7]
[381542009,1756273845592,-151.0,0.00030137,7]
[381542010,1756273845602,-151.0,0.00030137,7]
[381542011,1756273845613,-151.0,0.00030137,7]
[381542012,1756273845622,-157.69187,0.00030137,7]
[381542013,1756273845632,-157.69187,0.00030137,7]
[381542014,1756273845641,-157.69187,0.00030137,7]
[381542015,1756273845651,-151.0,0.00030137,7]
[381542016,1756273845660,-151.0,0.00030137,7]
[381542017,1756273845670,-157.69187,0.00030137,7]
[381542018,1756273845679,-235.914186,0.00030137,7]
[381542019,1756273845688,-1002.41907,0.00030137,7]
[381542020,1756273845698,-235.914186,0.00030137,7]
[381542021,1756273845708,-1002.41907,0.00030137,7]
[381542022,1756273845717,-235.914186,0.00030137,7]
[381542023,1756273845727,-1002.41907,0.00030137,7]
[381542024,1756273845736,-235.914186,0.00030137,7]
[381542025,1756273845746,-1002.41907,0.00030137,7]
[381542026,1756273845756,-151.0,0.00030137,7]
[381542028,1756273845765,-151.0,0.00030137,7]
[381542029,1756273845774,-1064.552854,0.00030137,7]
[381542030,1756273845783,-1064.552854,0.00030137,7]
[381542031,1756273845793,-1064.552854,0.00030137,7]
[381542032,1756273845802,-1064.552854,0.00030137,7]
[381542033,1756273845811,-151.0,0.00030137,7]
[381542034,1756273845821,-151.0,0.00030137,7]
[381542035,1756273845830,-151.0,0.00030137,7]
[381542036,1756273845839,-151.0,0.00030137,7]
[381542037,1756273845848,-151.0,0.00030137,7]
[381542038,1756273845858,-151.0,0.000302,14]
[381542039,1756273845867,-371.42,0.00030233,15]
[381542040,1756273845876,-3208.43357252,0.00030259,13]
[381542041,1756273845885,-550.0,0.00030264,5]
[381542042,1756273845895,-780.0,0.00030278,2]
[381542043,1756273845905,-371.42,0.00030333,15]
[381542044,1756273845915,-500.0,0.00030342,11]
[381542045,1756273845925,-860.0,0.00030402,2]
[381542046,1756273845935,-185.0,0.00030411,14]
[381542047,1756273845945,-371.42,0.00030433,15]
[381542048,1756273845954,-2832.52975829,0.00030443,2]
[381542049,1756273845964,-2890.81555332,0.00030444,2]
[381542050,1756273845973,-371.42,0.00030533,15]
[381542051,1756273845982,-780.0,0.00030552,2]
[381542052,1756273845991,-371.42,0.00030633,15]
[381542053,1756273846001,-500.0,0.0003064,30]
[381542054,1756273846010,-511.58286547,0.0003064,5]
[381542055,1756273846020,-500.0,0.0003064,5]
[381542056,1756273846029,-500.0,0.0003064,30]
[381542057,1756273846038,-378.0,0.00030645,7]
[381542058,1756273846048,-371.42,0.00030733,15]
[381542059,1756273846057,-186.6877418,0.00030761,2]
[381542060,1756273846066,-151.0,0.000308,11]
[381542061,1756273846075,-650.0,0.00030812,5]
[381542062,1756273846085,-780.0,0.00030826,2]
[381542063,1756273846094,-371.42,0.00030833,15]
[381542064,1756273846104,-371.42,0.00030933,15]
[381542065,1756273846113,-201.334348,0.00030947,2]
[381542066,1756273846122,-209.40437684,0.00030949,2]
[381542067,1756273846132,-960.0,0.0003095,2]
[381542068,1756273846141,-154.0,0.00031,120]
[381542069,1756273846151,-371.42,0.00031033,15]
[381542070,1756273846160,-14462.41423572,0.0003107,2]
[381542071,1756273846169,-780.0,0.000311,2]
[381542072,1756273846179,-371.42,0.00031133,15]
[381542073,1756273846188,-201.43800306,0.0003117,2]
[381542074,1756273846197,-189.69645233,0.00031189,2]
[381542075,1756273846207,-222.915027,0.000312,7]
[381542076,1756273846216,-4072.09,0.000312,7]
[381542077,1756273846225,-5293.87,0.000312,7]
[381542078,1756273846235,-371.42,0.00031233,15]
[381542079,1756273846244,-62095.29,0.000313,7]
[381542080,1756273846253,-194.813698,0.000313,7]
[381542081,1756273846262,-194.813698,0.000313,7]
[381542082,1756273846271,-194.813698,0.000313,7]